bitfinex/quotes_ETHUSD_20241004
["timestamp","ask_amount","ask_price","bid_price","bid_amount"]
[1728075985298,4.89836,2431.8,2431.3,4.11301]
[1728075986259,5.54312489,2431.8,2431.3,4.11301]
[1728075986457,0.96552249,2431.7,2431.3,4.11301]
[1728075987264,0.96552249,2431.7,2431.4,4.11284]
[1728075987598,1.43086489,2431.8,2431.4,4.11284]
[1728075987953,5.54305489,2431.8,2431.3,0.86225691]
[1728075988355,4.11236,2431.7,2431.3,0.86225691]
[1728075988557,5.54305489,2431.8,2431.4,4.11283]
[1728075989254,0.10079006,2431.7,2431.4,4.11283]
[1728075989461,9.65532489,2431.8,2431.3,4.97527691]
[1728075989685,0.10072736,2431.6,2431.3,4.97527691]
[1728075989892,0.10079006,2431.7,2431.3,4.11302]
[1728075990077,0.10066466,2431.5,2431.3,4.11302]
[1728075990285,6.50858738,2431.8,2431.3,4.11302]
[1728075990479,0.10063212,2431.4,2431.3,4.97527691]
[1728075990707,10.62085738,2431.8,2431.3,4.97527691]
[1728075990910,1.06208574,2431.7,2431.3,4.97527691]
[1728075991284,0.10077278,2431.6,2431.3,0.86225691]
[1728075991725,4.11245,2431.7,2431.3,0.86225691]
[1728075991895,0.09920792,2431.5,2431.3,0.86225691]
[1728075992226,0.09909979,2431.4,2431.3,4.97523691]
[1728075992390,4.11245,2431.7,2431.3,4.97523691]
[1728075992588,0.09909979,2431.4,2431.3,4.97523691]
[1728075992789,4.11245,2431.7,2431.3,4.97523691]
[1728075993108,9.19044249,2431.7,2431.3,0.86225691]
[1728075993311,5.07798249,2431.7,2431.3,0.86225691]
[1728075993511,0.09924012,2431.6,2431.2,4.97529691]
[1728075995046,0.09924012,2431.6,2431.3,0.86225691]
[1728075995210,4.11236,2431.7,2431.2,4.97529691]
[1728075995412,0.0991625,2431.5,2431.2,4.97529691]
[1728075995612,4.11256,2431.6,2431.3,0.86225691]
[1728075995810,0.09909979,2431.4,2431.2,4.97529691]
[1728075996010,4.11236,2431.7,2431.2,4.97529691]
[1728075996225,4.66668249,2431.7,2431.3,0.86225691]
[1728075996407,8.77911249,2431.7,2431.3,0.86225691]
[1728075996748,0.09925537,2431.6,2431.3,0.86225691]
[1728075997913,8.77912249,2431.7,2431.3,0.86225691]
[1728075998307,0.09439528,2431.6,2431.3,0.86225691]
[1728075999039,4.11256,2431.6,2431.3,0.86225691]
[1728075999225,0.0943475,2431.5,2431.3,0.86225691]
[1728076004063,4.11256,2431.6,2431.3,0.86225691]
[1728076004571,0.09433258,2431.5,2431.3,0.86225691]
[1728076004754,4.11256,2431.6,2431.3,0.86225691]
[1728076004940,0.09433258,2431.5,2431.3,0.86225691]
[1728076007978,4.66668249,2431.7,2431.3,0.86225691]
[1728076008184,0.09426987,2431.4,2431.3,0.86225691]
[1728076008472,4.11236,2431.7,2431.3,0.86225691]
[1728076008669,0.09426987,2431.4,2431.3,0.86225691]
[1728076008846,5.07791549,2431.7,2431.3,0.86225691]
[1728076008847,4.11236,2431.7,2431.3,0.86225691]
[1728076009049,0.09426987,2431.4,2431.3,0.86225691]
[1728076009480,4.11236,2431.7,2431.3,0.86225691]
[1728076009774,0.09430004,2431.4,2431.3,0.86225691]
[1728076009976,0.09442545,2431.6,2431.3,0.86225691]
[1728076010275,0.09431529,2431.4,2431.3,0.86225691]
[1728076010581,4.11236,2431.7,2431.3,0.86225691]
[1728076010749,5.07791549,2431.7,2431.3,0.86225691]
[1728076011276,0.09439528,2431.6,2431.3,0.86225691]
[1728076011572,0.09439528,2431.6,2431.4,5.79639691]
[1728076011949,0.64476489,2431.8,2431.4,9.90917691]
[1728076012145,0.09435852,2431.5,2431.4,5.79639691]
[1728076012350,0.64476489,2431.8,2431.4,5.79639691]
[1728076012676,0.64476489,2431.8,2431.4,0.86225691]
[1728076012677,5.03566625,2431.7,2431.4,0.86225691]
[1728076013035,5.03566625,2431.7,2431.3,0.86225691]
[1728076013238,4.11276,2431.5,2431.3,0.86225691]
[1728076013671,0.09434556,2431.4,2431.3,0.86225691]
[1728076016661,5.03599556,2431.4,2431.3,0.86225691]
[1728076016862,5.95087112,2431.4,2431.2,0.86225691]
[1728076017068,5.95087112,2431.4,2431.3,0.86225691]
[1728076017268,5.95087112,2431.4,2431.2,0.86225691]
[1728076017480,4.20719556,2431.4,2431.2,0.86225691]
[1728076019164,4.20719556,2431.4,2431.1,4.28571339]
[1728076019165,4.20719556,2431.4,2431.3,0.86225691]
[1728076019681,0.09434556,2431.4,2431.3,0.86225691]
[1728076020985,0.8288,2431.6,2431.3,0.86225691]
[1728076020986,4.94133,2431.6,2431.3,0.86225691]
[1728076021189,0.094285,2431.4,2431.3,0.86225691]
[1728076021373,4.94133,2431.6,2431.3,0.86225691]
[1728076021572,0.09436263,2431.5,2431.3,0.86225691]
[1728076023664,0.09436263,2431.5,2431.3,1.68365691]
[1728076023976,4.11244,2431.7,2431.3,1.68365691]
[1728076024187,0.09316521,2431.4,2431.3,1.68365691]
[1728076024396,8.22489,2431.7,2431.3,1.68365691]
[1728076024599,1.06682084,2431.6,2431.3,1.68365691]
[1728076024791,5.27273163,2431.6,2431.3,1.68365691]
[1728076026659,5.27273163,2431.6,2431.4,0.86225691]
[1728076027001,5.27273163,2431.6,2431.3,1.68365691]
[1728076027167,4.20591079,2431.6,2431.4,0.86225691]
[1728076029056,0.09332079,2431.6,2431.4,0.86225691]
[1728076029257,4.11244,2431.7,2431.4,0.86225691]
[1728076029470,0.09010846,2431.6,2431.4,0.86225691]
[1728076030766,0.09010846,2431.6,2431.5,0.86225691]
[1728076030997,0.09010846,2431.6,2431.4,0.86225691]
[1728076031498,8.22487,2431.7,2431.4,0.86225691]
[1728076031801,9.29168884,2431.7,2431.4,0.86225691]
[1728076032001,0.09010846,2431.6,2431.5,0.86225691]
[1728076032367,0.09010846,2431.6,2431.4,0.86225691]
[1728076032577,0.09010846,2431.6,2431.5,0.86225691]
[1728076034809,1.47356489,2431.8,2431.5,0.86225691]
[1728076035210,0.08928068,2431.7,2431.5,0.86225691]
[1728076035580,1.47356489,2431.8,2431.5,0.86225691]
[1728076035780,0.08612663,2431.6,2431.5,0.86225691]
[1728076036274,5.58577489,2431.8,2431.5,0.86225691]
[1728076036480,0.08621949,2431.7,2431.5,0.86225691]
[1728076036661,5.58577489,2431.8,2431.5,0.86225691]
[1728076036867,0.0862303,2431.7,2431.5,0.86225691]
[1728076037176,0.64476489,2431.8,2431.5,0.86225691]
[1728076037382,0.08613744,2431.6,2431.4,5.39844339]
[1728076037592,4.75694489,2431.8,2431.5,0.86355533]
[1728076037905,4.75694489,2431.8,2431.6,0.86355533]
[1728076038119,0.08430658,2431.7,2431.6,0.86355533]
[1728076038467,4.75694489,2431.8,2431.5,0.86355533]
[1728076038770,0.08430658,2431.7,2431.5,0.86355533]
[1728076039139,4.75694489,2431.8,2431.5,0.86355533]
[1728076039434,0.08424388,2431.6,2431.5,0.86355533]
[1728076039706,4.11242,2431.7,2431.5,0.86355533]
[1728076039905,0.08424388,2431.6,2431.5,0.86355533]
[1728076042920,4.11242,2431.7,2431.5,0.86355533]
[1728076043429,4.1967688,2431.6,2431.5,0.86355533]
[1728076043816,4.11251,2431.6,2431.5,0.86355533]
[1728076044208,4.19678405,2431.6,2431.5,0.86355533]
[1728076045044,4.19678405,2431.6,2431.4,0.86355533]
[1728076045249,4.19678405,2431.6,2431.5,0.86355533]
[1728076045897,4.19678405,2431.6,2431.4,0.86355533]
[1728076046111,4.11251,2431.6,2431.5,0.86355533]
[1728076050541,4.75694489,2431.8,2431.5,0.86355533]
[1728076050748,0.64476489,2431.8,2431.6,1.66815533]
[1728076050908,0.64476489,2431.8,2431.7,0.86355533]
[1728076051149,0.72911254,2431.8,2431.7,0.86355533]
[1728076051443,0.64476489,2431.8,2431.7,0.86355533]
[1728076051811,0.7291363,2431.8,2431.7,0.86355533]
[1728076052129,0.7291363,2431.8,2431.7,1.66815533]
[1728076052330,0.08437141,2431.8,2431.7,1.66815533]
[1728076052730,4.11184,2432.0,2431.7,1.66815533]
[1728076053263,8.22378,2432.0,2431.7,1.66815533]
[1728076053545,0.08428518,2431.9,2431.7,1.66815533]
[1728076056053,0.08428518,2431.9,2431.7,0.8046]
[1728076056741,4.19629518,2431.9,2431.7,0.8046]
[1728076056947,4.11201,2431.9,2431.7,0.8046]
[1728076057121,0.08351407,2431.8,2431.7,0.8046]
[1728076060319,4.11184,2432.0,2431.7,0.8046]
[1728076060545,0.08321868,2431.9,2431.7,0.8046]
[1728076064584,0.08321868,2431.9,2431.7,1.66815533]
[1728076064742,4.11218,2431.8,2431.7,0.86355533]
[1728076064945,4.11239,2431.7,2431.5,20.58355533]
[1728076065816,4.90521,2431.6,2431.5,19.72]
[1728076066683,4.90521,2431.6,2431.5,20.58355533]
[1728076066886,4.90521,2431.6,2431.5,19.72]
[1728076067680,4.90521,2431.6,2431.5,20.58355533]
[1728076067988,4.11251,2431.6,2431.5,19.72]
[1728076068545,4.11251,2431.6,2431.5,20.58355533]
[1728076069046,4.11235,2431.7,2431.5,19.72]
[1728076069245,0.08054326,2431.6,2431.5,20.58355533]
[1728076070313,4.11235,2431.7,2431.5,20.58355533]
[1728076071604,0.7927,2431.8,2431.5,20.58355533]
[1728076071774,0.7927,2431.8,2431.5,21.36735533]
[1728076072295,0.7927,2431.8,2431.6,0.86355533]
[1728076072596,0.08064921,2431.7,2431.6,0.86355533]
[1728076072763,0.08064921,2431.7,2431.5,21.36735533]
[1728076072962,4.11203,2431.9,2431.5,24.62667065]
[1728076073322,0.0807424,2431.8,2431.5,21.36735533]
[1728076073467,4.11203,2431.9,2431.6,0.86355533]
[1728076073673,0.0807424,2431.8,2431.6,0.86355533]
[1728076074572,0.0807424,2431.8,2431.5,21.36735533]
[1728076074770,0.0807424,2431.8,2431.6,0.86355533]
[1728076074977,4.11203,2431.9,2431.5,21.36735533]
[1728076075294,4.11163,2432.2,2431.7,4.11231]
[1728076075494,0.0809152,2432.1,2431.7,4.97586533]
[1728076076008,0.0809152,2432.1,2431.8,5.75945533]
[1728076076298,0.07805513,2432.0,2431.8,5.75945533]
[1728076076498,0.7741,2432.2,2431.8,6.8752032]
[1728076076687,0.07812651,2432.1,2431.8,6.8752032]
[1728076078445,0.07812651,2432.1,2432.0,4.11184]
[1728076078646,0.07812651,2432.1,2432.0,4.89564]
[1728076078946,4.11109,2432.5,2432.0,4.89564]
[1728076078947,4.11109,2432.5,2432.1,4.11158]
[1728076079114,0.07855752,2432.4,2432.1,4.11158]
[1728076079442,8.99587,2432.6,2432.1,4.13298202]
[1728076080033,4.18962541,2432.5,2432.1,4.11158]
[1728076081233,4.18962541,2432.5,2432.0,5.75919533]
[1728076081443,4.18962541,2432.5,2432.0,7.15789444]
[1728076082544,4.18962541,2432.5,2432.0,7.15780444]
[1728076082741,4.18962541,2432.5,2432.0,11.26952444]
[1728076083311,0.07863541,2432.5,2432.0,7.15777444]
[1728076083501,0.07863541,2432.5,2432.1,4.11154]
[1728076083700,0.07863541,2432.5,2432.2,1.12693144]
[1728076084403,0.07863541,2432.5,2432.2,5.23840144]
[1728076084821,0.07863541,2432.5,2432.2,1.12693144]
[1728076086803,0.07863541,2432.5,2432.1,4.11154]
[1728076087242,0.07863541,2432.5,2432.2,0.7838]
[1728076088436,0.07863541,2432.5,2432.2,4.89529]
[1728076089000,0.7741,2432.7,2432.3,4.11131]
[1728076089201,0.7741,2432.7,2432.4,0.90066]
[1728076089615,4.11062,2432.8,2432.4,5.01178]
[1728076089815,4.86777,2433.0,2432.5,0.78334844]
[1728076090041,0.7575,2433.0,2432.6,4.11082]
[1728076090407,4.11003,2433.1,2432.6,4.11082]
[1728076090642,4.11003,2433.1,2432.6,5.09481453]
[1728076091002,4.86743,2433.2,2432.6,5.09481453]
[1728076091003,4.11016,2433.0,2432.6,5.09481453]
[1728076091438,4.11016,2433.0,2432.6,5.12346179]
[1728076092535,0.7575,2433.2,2432.7,4.11063]
[1728076092750,4.10972,2433.3,2432.8,4.8937349]
[1728076092931,4.10972,2433.3,2432.9,4.1103]
[1728076093128,0.7575,2433.4,2433.0,0.02864254]
[1728076093129,4.86697,2433.4,2433.0,0.02864254]
[1728076093325,4.86697,2433.4,2433.0,4.13877254]
[1728076093529,4.10947,2433.4,2433.1,0.7547]
[1728076093740,4.10934,2433.5,2433.1,0.7547]
[1728076094355,0.64454721,2433.7,2433.2,4.10966]
[1728076094513,4.8663,2433.8,2433.4,8.21873]
[1728076094514,0.7575,2433.8,2433.4,8.21873]
[1728076094713,4.10864,2433.9,2433.4,4.10936]
[1728076094949,0.7575,2434.0,2433.6,4.109]
[1728076095117,0.7575,2434.0,2433.6,0.7547]
[1728076095118,4.86598,2434.0,2433.6,0.7547]
[1728076095313,4.86598,2434.0,2433.4,4.86409]
[1728076095314,4.10875,2433.9,2433.4,4.86409]
[1728076095625,4.86598,2434.0,2433.4,7.733471]
[1728076095896,4.86598,2434.0,2433.5,4.10921]
[1728076097726,8.97455,2434.0,2433.5,4.10921]
[1728076098241,0.07728477,2433.9,2433.5,4.10921]
[1728076098758,4.86598,2434.0,2433.5,4.10921]
[1728076098759,0.07722218,2433.8,2433.5,4.10921]
[1728076098930,8.97452,2434.0,2433.5,7.2654781]
[1728076099129,0.07728477,2433.9,2433.5,7.2654781]
[1728076099363,0.07728477,2433.9,2433.6,4.10912]
[1728076103950,0.7575,2434.0,2433.6,4.10912]
[1728076104170,0.07733014,2433.9,2433.6,4.10912]
[1728076104466,0.7575,2434.0,2433.6,7.29406281]
[1728076104826,0.07733014,2433.9,2433.6,11.40311281]
[1728076105027,0.07733014,2433.9,2433.6,8.21817]
[1728076105227,0.7575,2434.0,2433.6,8.21817]
[1728076105665,0.07728477,2433.9,2433.6,8.21817]
[1728076105840,0.07728477,2433.9,2433.6,8.2181]
[1728076106043,4.86599,2434.0,2433.6,4.10905]
[1728076106276,0.7575,2433.8,2433.3,23.82956]
[1728076106430,4.86642,2433.8,2433.3,23.82956]
[1728076106631,0.07782176,2433.7,2433.3,23.82956]
[1728076107055,4.86642,2433.8,2433.3,23.82956]
[1728076107263,0.07774367,2433.6,2433.3,23.82956]
[1728076107470,0.07780626,2433.7,2433.3,23.82956]
[1728076107682,0.07782757,2433.5,2433.3,23.82956]
[1728076107839,4.86642,2433.8,2433.4,4.10947]
[1728076109545,0.7575,2433.8,2433.4,4.10947]
[1728076110642,0.7575,2433.8,2433.4,8.21887]
[1728076111585,0.7575,2433.8,2433.5,4.1093]
[1728076113387,0.07791325,2433.7,2433.5,4.1093]
[1728076113750,0.7575,2433.8,2433.5,4.1093]
[1728076113949,0.07792849,2433.7,2433.5,4.1093]
[1728076114150,0.7575,2433.8,2433.5,4.1093]
[1728076114393,0.07794372,2433.7,2433.5,4.1093]
[1728076114724,0.7575,2433.8,2433.5,4.1093]
[1728076114884,0.07798321,2433.7,2433.5,4.1093]
[1728076115086,0.7575,2433.8,2433.5,4.1093]
[1728076115307,0.07798321,2433.7,2433.5,5.71434]
[1728076115486,0.8116,2434.2,2433.6,4.89233]
[1728076115703,0.8116,2434.2,2434.0,4.10835]
[1728076116014,0.07809625,2434.1,2434.0,4.10846]
[1728076116307,0.8116,2434.4,2434.0,4.10846]
[1728076116481,0.07822354,2434.3,2434.0,4.10846]
[1728076118081,0.07822354,2434.3,2433.9,4.10862]
[1728076119276,0.07822354,2434.3,2433.9,4.930349]
[1728076121319,4.10818,2434.2,2433.9,0.821729]
[1728076121471,0.07804615,2434.1,2433.7,4.10895]
[1728076122187,0.8116,2434.0,2433.6,20.5032]
[1728076122388,7.10729,2434.7,2433.6,19.72]
[1728076122389,0.8116,2433.7,2433.6,19.72]
[1728076122609,4.92056,2433.7,2433.2,4.10965]
[1728076122918,4.92056,2433.7,2433.3,3.47208903]
[1728076123225,0.07770278,2433.6,2433.3,2.761285]
[1728076123586,0.07770278,2433.6,2433.4,4.10947]
[1728076126880,0.8116,2433.7,2433.4,4.10947]
[1728076127622,0.8116,2433.7,2433.4,5.2075125]
[1728076127826,0.8116,2433.9,2433.5,4.10922]
[1728076128131,0.07792482,2433.8,2433.6,4.10913]
[1728076128423,0.8116,2433.9,2433.6,4.10913]
[1728076128923,0.07793133,2433.8,2433.6,4.10913]
[1728076129080,4.89021,2434.1,2433.7,0.821835]
[1728076129286,0.07776435,2434.0,2433.6,4.10913]
[1728076129488,0.07776435,2434.0,2433.7,4.1089]
[1728076129693,0.07776435,2434.0,2433.9,4.10863]
[1728076129899,0.7819,2434.3,2433.9,4.10863]
[1728076130141,0.07821439,2434.2,2433.9,4.10863]
[1728076130447,0.7819,2434.3,2433.9,4.10863]
[1728076130599,0.07816706,2434.1,2433.9,4.10863]
[1728076130802,0.7819,2434.3,2433.9,4.10863]
[1728076130803,0.7819,2434.3,2433.9,4.930372]
[1728076131106,0.07822962,2434.2,2433.9,4.930372]
[1728076131296,0.7819,2434.3,2433.9,4.930372]
[1728076131497,0.07819949,2434.2,2433.9,4.930372]
[1728076131738,0.7819,2434.3,2433.9,4.930372]
[1728076131934,0.07824485,2434.2,2433.9,4.930372]
[1728076132107,0.7819,2434.3,2434.0,0.9039162]
[1728076132313,0.07819949,2434.2,2434.0,0.9039162]
[1728076132515,0.7819,2434.3,2434.0,0.9039162]
[1728076132728,0.07819949,2434.2,2434.0,0.9039162]
[1728076133032,4.88986,2434.3,2434.0,0.9039162]
[1728076133196,0.07813693,2434.1,2434.0,0.9039162]
[1728076133400,4.88986,2434.3,2434.0,0.9039162]
[1728076133608,0.07819949,2434.2,2434.0,0.9039162]
[1728076133937,4.88986,2434.3,2434.0,0.9039162]
[1728076134133,0.07821439,2434.2,2434.0,0.9039162]
[1728076134344,4.88986,2434.3,2434.0,0.9039162]
[1728076134546,0.07822962,2434.2,2434.0,0.9039162]
[1728076134832,4.88986,2434.3,2434.0,0.9039162]
[1728076135315,0.07819949,2434.2,2434.0,0.9039162]
[1728076135642,4.88986,2434.3,2434.0,0.9039162]
[1728076135847,0.07818229,2434.1,2434.0,0.9039162]
[1728076135995,4.88986,2434.3,2434.0,0.9039162]
[1728076136196,0.07819949,2434.2,2434.0,0.9039162]
[1728076136396,4.88986,2434.3,2434.0,0.9039162]
[1728076136622,0.07819949,2434.2,2434.0,0.9039162]
[1728076136830,4.1086,2434.0,2433.6,19.72]
[1728076137043,0.7819,2434.1,2433.6,19.72]
[1728076137250,4.10789,2434.4,2433.9,4.10858]
[1728076137251,4.88977,2434.4,2433.9,4.10858]
[1728076137454,4.10803,2434.3,2433.7,0.7993]
[1728076137611,4.18646538,2434.3,2433.8,6.65797553]
[1728076137812,4.10803,2434.3,2433.8,10.76676553]
[1728076138037,0.07837282,2434.2,2433.8,6.65797553]
[1728076138346,4.10803,2434.3,2433.9,0.74572755]
[1728076138645,0.07838805,2434.2,2433.9,0.74572755]
[1728076138944,4.10803,2434.3,2433.9,0.74572755]
[1728076139145,0.07834269,2434.2,2433.9,0.74572755]
[1728076139355,4.10803,2434.3,2433.9,0.74572755]
[1728076139509,0.07834269,2434.2,2433.9,0.74572755]
[1728076139709,4.10803,2434.3,2433.9,0.74572755]
[1728076139910,0.07834269,2434.2,2433.9,0.74572755]
[1728076140137,4.10803,2434.3,2433.9,0.74572755]
[1728076140452,0.07835759,2434.2,2433.9,0.74572755]
[1728076140814,4.10831,2434.1,2433.9,0.74572755]
[1728076141013,4.89021,2434.1,2433.8,2.54918553]
[1728076143158,4.89021,2434.1,2433.6,20.58355533]
[1728076143312,4.89021,2434.1,2433.6,19.72]
[1728076143514,4.10847,2434.0,2433.6,19.72]
[1728076143760,0.07811508,2433.9,2433.6,19.72]
[1728076143919,4.10847,2434.0,2433.6,23.82912]
[1728076144254,0.07813032,2433.9,2433.6,27.92404025]
[1728076144629,4.89021,2434.1,2433.6,28.78759558]
[1728076145027,4.89021,2434.1,2433.6,27.92404025]
[1728076146044,4.89021,2434.1,2433.6,32.03310025]
[1728076146245,4.89021,2434.1,2433.6,12.31310025]
[1728076146567,4.89021,2434.1,2433.6,8.21818]
[1728076146771,0.7819,2434.1,2433.7,4.10889]
[1728076146922,0.7819,2434.3,2433.9,0.7993]
[1728076147129,4.10774,2434.5,2434.1,4.10821]
[1728076147130,0.7819,2434.5,2434.1,4.10821]
[1728076147326,0.0781592,2434.4,2434.2,4.10804]
[1728076147629,4.10738,2434.7,2434.3,0.7993]
[1728076147830,4.88902,2434.8,2434.3,4.90712]
[1728076148325,4.88902,2434.8,2434.3,0.7993]
[1728076148549,4.88902,2434.8,2434.4,4.10778]
[1728076148925,4.88902,2434.8,2434.3,5.4470391]
[1728076149127,0.7819,2434.8,2434.3,1.3391091]
[1728076149324,4.10729,2434.7,2434.3,5.4470291]
[1728076149527,4.10729,2434.7,2434.3,1.3391091]
[1728076149765,4.10745,2434.6,2434.4,0.54471491]
[1728076150772,4.10729,2434.7,2434.4,0.54471491]
[1728076152278,0.64418247,2435.0,2434.1,0.490751]
[1728076152279,4.1078,2434.4,2434.1,0.490751]
[1728076152484,4.10795,2434.3,2434.1,0.490751]
[1728076152778,4.10795,2434.3,2433.9,4.1086]
[1728076158759,0.7775,2434.2,2433.8,4.10868]
[1728076159088,4.88563,2434.2,2433.8,4.10868]
[1728076159242,4.10831,2434.1,2433.7,0.86355533]
[1728076159444,4.18669181,2434.1,2433.7,1.00438987]
[1728076159669,4.10831,2434.1,2433.7,1.00438987]
[1728076159991,4.10831,2434.1,2433.7,5.11334987]
[1728076160662,4.88563,2434.2,2433.7,5.11334987]
[1728076162189,0.7775,2434.2,2433.9,4.10854]
[1728076162394,0.07833004,2434.1,2434.0,4.10845]
[1728076162695,4.88541,2434.4,2434.0,4.10845]
[1728076163290,0.07843347,2434.3,2434.0,4.10845]
[1728076163526,0.07843347,2434.3,2434.1,0.489405]
[1728076163783,0.07843347,2434.3,2434.0,4.10845]
[1728076164147,0.07843347,2434.3,2433.9,4.89422]
[1728076164993,4.10816,2434.2,2433.8,5.49582352]
[1728076165151,0.07815211,2434.1,2433.8,5.49582352]
[1728076168289,0.07815211,2434.1,2433.8,5.49594352]
[1728076168456,0.07815211,2434.1,2433.9,2.70059334]
[1728076178135,0.07815211,2434.1,2433.8,1.38715352]
[1728076179097,0.07815211,2434.1,2433.7,20.58355533]
[1728076179098,4.10864,2433.9,2433.7,20.58355533]
[1728076179297,4.10864,2433.9,2433.7,19.72]
[1728076179694,4.18703797,2433.8,2433.6,0.86355533]
[1728076179894,4.18703797,2433.8,2433.5,4.61945533]
[1728076180698,0.07813797,2433.8,2433.5,4.61945533]
[1728076180898,0.07813797,2433.8,2433.6,3.38439387]
[1728076183321,0.07813797,2433.8,2433.5,4.67628722]
[1728076186133,4.10864,2433.9,2433.5,4.67628722]
[1728076188742,4.10864,2433.9,2433.5,8.78557722]
[1728076189043,4.10864,2433.9,2433.5,8.72874533]
[1728076192943,4.90003,2434.1,2433.5,8.72874533]
[1728076193130,4.90003,2434.1,2433.6,7.08249587]
[1728076195135,4.90003,2434.1,2433.6,7.9460512]
[1728076195321,0.7916,2434.1,2433.7,4.10881]
[1728076195927,0.7916,2434.1,2433.7,4.97236533]
[1728076196115,0.7916,2434.1,2433.7,4.10881]
[1728076196339,0.7916,2434.1,2433.8,0.79458112]
[1728076196559,4.89991,2434.1,2433.8,0.79458112]
[1728076196935,0.07708384,2434.0,2433.8,0.79458112]
[1728076198046,4.18554384,2434.0,2433.8,0.79458112]
[1728076198218,8.29409384,2434.0,2433.6,3.8370012]
[1728076198425,4.18554384,2434.0,2433.6,3.8370012]
[1728076200638,4.18554384,2434.0,2433.7,1.5735444]
[1728076200822,4.18554384,2434.0,2433.6,7.9461112]
[1728076201022,4.18554384,2434.0,2433.7,2.57324279]
[1728076201344,4.18554384,2434.0,2433.7,1.70968746]
[1728076201651,4.18554384,2434.0,2433.7,2.57324279]
[1728076201963,4.18554384,2434.0,2433.7,1.70968746]
[1728076204735,4.10865,2433.9,2433.6,3.8370012]
[1728076204949,4.18575405,2433.9,2433.6,3.8370012]
[1728076205744,0.07710405,2433.9,2433.6,3.8370012]
[1728076206249,0.07437059,2433.8,2433.6,3.8370012]
[1728076206447,4.10848,2434.0,2433.6,3.8370012]
[1728076206686,4.10848,2434.0,2433.6,0.86355533]
[1728076206687,0.07444839,2433.9,2433.6,0.86355533]
[1728076208887,0.07435568,2433.8,2433.6,0.86355533]
[1728076209092,0.89395568,2433.8,2433.6,0.86355533]
[1728076209289,0.8196,2433.8,2433.6,0.86355533]
[1728076209489,0.0742931,2433.7,2433.6,0.86355533]
[1728076209651,0.0742931,2433.7,2433.6,1.57409244]
[1728076209990,0.8196,2433.8,2433.6,5.6799543]
[1728076210164,0.8196,2433.8,2433.6,4.96941719]
[1728076210551,0.8196,2433.8,2433.6,0.86028719]
[1728076210552,4.92854,2433.8,2433.6,0.86028719]
[1728076210748,0.903725,2433.7,2433.6,0.86028719]
[1728076210991,0.97804174,2433.7,2433.5,0.86028719]
[1728076211294,4.92854,2433.8,2433.5,0.86028719]
[1728076212191,4.92854,2433.8,2433.6,0.86028719]
[1728076212887,0.0743472,2433.7,2433.6,0.86028719]
[1728076213268,0.8196,2433.8,2433.6,0.86028719]
[1728076213472,0.07428877,2433.7,2433.6,0.86028719]
[1728076213792,0.8196,2433.8,2433.6,0.86028719]
[1728076214099,0.07428877,2433.7,2433.6,0.86028719]
[1728076214469,0.8196,2433.8,2433.6,0.86028719]
[1728076214967,0.07430367,2433.7,2433.6,0.86028719]
[1728076215490,0.07431891,2433.7,2433.6,0.86028719]
[1728076215791,0.8196,2433.8,2433.6,0.86028719]
[1728076215951,0.07430687,2433.7,2433.6,0.86028719]
[1728076216155,0.8196,2433.8,2433.4,12.50448339]
[1728076216369,0.0743221,2433.7,2433.5,0.71052593]
[1728076216596,0.8196,2433.8,2433.6,0.86059262]
[1728076218174,0.07427673,2433.7,2433.6,0.86059262]
[1728076218576,0.8196,2433.8,2433.6,0.86059262]
[1728076218767,0.07429164,2433.7,2433.6,0.86059262]
[1728076219103,0.07430687,2433.7,2433.6,0.86059262]
[1728076219274,0.8196,2433.8,2433.6,0.86059262]
[1728076219480,0.07430687,2433.7,2433.6,0.86059262]
[1728076219799,0.8196,2433.8,2433.6,0.86059262]
[1728076220004,0.07430687,2433.7,2433.6,0.86059262]
[1728076220397,0.8196,2433.8,2433.6,0.86059262]
[1728076220605,0.0743221,2433.7,2433.6,0.86059262]
[1728076221105,0.07433734,2433.7,2433.6,0.86059262]
[1728076221260,0.8196,2433.8,2433.6,0.86059262]
[1728076221460,0.07433734,2433.7,2433.6,0.86059262]
[1728076221801,0.8196,2433.8,2433.6,0.86059262]
[1728076222097,0.07427673,2433.7,2433.6,0.86059262]
[1728076222396,0.8196,2433.8,2433.5,4.96989262]
[1728076222605,0.07430687,2433.7,2433.6,0.86059262]
[1728076222962,0.8196,2433.8,2433.6,0.86059262]
[1728076223273,0.0743221,2433.7,2433.6,0.86059262]
[1728076223598,0.8196,2433.8,2433.6,0.86059262]
[1728076223816,0.07430264,2433.7,2433.6,0.86059262]
[1728076224183,0.8196,2433.8,2433.5,4.96989262]
[1728076224391,0.07424203,2433.7,2433.6,0.86059262]
[1728076224883,0.8196,2433.8,2433.6,0.86059262]
[1728076225122,0.07424203,2433.7,2433.6,0.86059262]
[1728076225486,0.8196,2433.8,2433.6,0.86059262]
[1728076225706,0.07424203,2433.7,2433.6,0.86059262]
[1728076225916,0.8196,2433.8,2433.6,0.86059262]
[1728076226101,0.07432715,2433.7,2433.6,0.86059262]
[1728076226424,0.8196,2433.8,2433.6,0.86059262]
[1728076226622,0.07434238,2433.7,2433.6,0.86059262]
[1728076227023,0.8196,2433.8,2433.6,0.86059262]
[1728076227229,0.07432418,2433.7,2433.6,0.86059262]
[1728076227929,0.8196,2433.8,2433.6,0.86059262]
[1728076228127,0.07427881,2433.7,2433.6,0.86059262]
[1728076228423,0.8196,2433.8,2433.5,4.96989262]
[1728076228628,0.07427881,2433.7,2433.5,4.96989262]
[1728076228934,0.8196,2433.8,2433.6,0.86059262]
[1728076229425,0.07429372,2433.7,2433.6,0.86059262]
[1728076229933,0.8196,2433.8,2433.6,0.86059262]
[1728076230229,0.07430895,2433.7,2433.6,0.86059262]
[1728076230821,0.8196,2433.8,2433.6,0.86059262]
[1728076231518,0.07430747,2433.7,2433.6,0.86059262]
[1728076231910,0.8196,2433.8,2433.6,4.96972262]
[1728076232290,0.11673067,2433.7,2433.6,0.86059262]
[1728076232492,0.8196,2433.8,2433.6,1.57106413]
[1728076232795,0.11672199,2433.7,2433.6,0.86059262]
[1728076232998,0.11672199,2433.7,2433.6,1.57106398]
[1728076233196,4.10913,2433.6,2433.4,0.86059262]
[1728076233409,0.7625,2433.5,2433.3,0.86059262]
[1728076233613,4.98845981,2433.5,2433.2,0.86059262]
[1728076234226,0.87911981,2433.5,2433.2,4.97039262]
[1728076234405,0.87911981,2433.5,2433.2,9.08019262]
[1728076234615,0.87911981,2433.5,2433.2,4.97039262]
[1728076234816,0.7625,2433.5,2433.2,4.97039262]